fUST/lending_fUST_20250423
["ID","MTS","AMOUNT","RATE_DAILY","PERIOD"]
[358680473,1745363450624,-500.0,0.00022739,2]
[358680474,1745363450635,-500.0,0.00022739,2]
[358680475,1745363450645,-161.67397329,0.00022739,2]
[358680476,1745363450655,-613.97665778,0.00022739,2]
[358680477,1745363450665,-500.0,0.00022739,2]
[358680478,1745363450675,-500.0,0.00022739,2]
[358680479,1745363450685,-500.0,0.00022739,2]
[358680480,1745363450694,-500.0,0.00022739,2]
[358680481,1745363450704,-500.0,0.00022739,2]
[358680482,1745363450713,-386.76,0.00022739,2]
[358680483,1745363450723,-500.0,0.00022739,2]
[358680484,1745363450733,-500.0,0.00022739,2]
[358680485,1745363450743,-500.0,0.00022739,2]
[358680486,1745363450754,-500.0,0.00022739,2]
[358680487,1745363450764,-500.0,0.00022739,2]
[358680488,1745363450774,-500.0,0.00022739,2]
[358680489,1745363450784,-500.0,0.00022739,2]
[358680490,1745363450794,-500.0,0.00022739,2]
[358680491,1745363450805,-500.0,0.00022739,2]
[358680492,1745363450815,-500.0,0.00022739,2]
[358680493,1745363450824,-500.0,0.00022739,2]
[358680494,1745363450836,-500.0,0.00022739,2]
[358680495,1745363450846,-225.67875566,0.00022739,2]
[358680496,1745363450856,-1951.31,0.00022739,2]
[358680497,1745363450866,-1299.0,0.00022739,2]
[358680498,1745363450877,-500.0,0.00022739,2]
[358680499,1745363450886,-862.64,0.00022739,2]
[358680500,1745363450896,-599.95,0.00022739,2]
[358680501,1745363450906,-500.0,0.00022739,2]
[358680502,1745363450916,-500.0,0.00022739,2]
[358680503,1745363450926,-500.0,0.00022739,2]
[358680504,1745363450935,-939.71,0.00022739,2]
[358680505,1745363450945,-500.0,0.00022739,2]
[358680506,1745363450956,-254.57,0.00022739,2]
[358680507,1745363450966,-500.0,0.00022739,2]
[358680508,1745363450976,-500.0,0.00022739,2]
[358680509,1745363450985,-500.0,0.00022739,2]
[358680510,1745363450995,-500.0,0.00022739,2]
[358680511,1745363451005,-500.0,0.00022739,2]
[358680512,1745363451015,-582.37,0.00022739,2]
[358680513,1745363451024,-500.0,0.00022739,2]
[358680514,1745363451035,-1024.79,0.00022739,2]
[358680515,1745363451045,-370.03,0.00022739,2]
[358680516,1745363451056,-241.01216504,0.00023011,2]
[358680517,1745363451066,-500.0,0.00023013,2]
[358680518,1745363451077,-500.0,0.00023013,2]
[358680519,1745363451087,-756.71,0.00023013,2]
[358680520,1745363451097,-500.0,0.00023013,2]
[358680521,1745363451110,-500.0,0.00023013,2]
[358680522,1745363451120,-500.0,0.00023013,2]
[358680523,1745363451130,-500.0,0.00023013,2]
[358680524,1745363451141,-500.0,0.00023013,2]
[358680525,1745363451152,-500.0,0.00023013,2]
[358680526,1745363451162,-500.0,0.00023013,2]
[358680527,1745363451172,-500.0,0.00023013,2]
[358680528,1745363451184,-500.0,0.00023013,2]
[358680529,1745363451194,-500.0,0.00023013,2]
[358680530,1745363451204,-193.38289694,0.00023013,2]
[358680531,1745363451214,-500.0,0.00023013,2]
[358680532,1745363451224,-500.0,0.00023013,2]
[358680533,1745363451234,-500.0,0.00023013,2]
[358680534,1745363451244,-500.0,0.00023013,2]
[358680535,1745363451254,-500.0,0.00023013,2]
[358680536,1745363451264,-500.0,0.00023013,2]
[358680537,1745363451274,-594.00838893,0.00023013,2]
[358680538,1745363451284,-500.0,0.00023013,2]
[358680539,1745363451295,-500.0,0.00023013,2]
[358680540,1745363451305,-500.0,0.00023013,2]
[358680541,1745363451315,-500.0,0.00023013,2]
[358680542,1745363451325,-1951.31,0.00023013,2]
[358680543,1745363451341,-1299.0,0.00023013,2]
[358680544,1745363451351,-500.0,0.00023013,2]
[358680545,1745363451361,-862.64,0.00023013,2]
[358680546,1745363451372,-599.95,0.00023013,2]
[358680547,1745363451383,-569.03,0.00023013,2]
[358680548,1745363451394,-500.0,0.00023013,2]
[358680549,1745363451404,-500.0,0.00023013,2]
[358680550,1745363451414,-939.71,0.00023013,2]
[358680551,1745363451424,-500.0,0.00023013,2]
[358680552,1745363451435,-500.0,0.00023013,2]
[358680553,1745363451445,-500.0,0.00023013,2]
[358680554,1745363451455,-500.0,0.00023013,2]
[358680555,1745363451465,-582.37,0.00023013,2]
[358680556,1745363451476,-1024.79,0.00023013,2]
[358680557,1745363451486,-500.0,0.00023286,2]
[358680558,1745363451496,-500.0,0.00023286,2]
[358680559,1745363451506,-500.0,0.00023287,2]
[358680560,1745363451520,-756.71,0.00023287,2]
[358680561,1745363451530,-350.91131687,0.00023287,2]
[358680562,1745363451540,-500.0,0.00023287,2]
[358680563,1745363451550,-251.65103457,0.00023287,2]
[358680564,1745363451560,-564.37776606,0.00023287,2]
[358680565,1745363451570,-500.0,0.00023287,2]
[358680566,1745363451583,-500.0,0.00023287,2]
[358680567,1745363451593,-500.0,0.00023287,2]
[358680568,1745363451603,-500.0,0.00023287,2]
[358680569,1745363451613,-1951.31,0.00023287,2]
[358680570,1745363451623,-1299.0,0.00023287,2]
[358680571,1745363451633,-500.0,0.00023287,2]
[358680572,1745363451643,-862.64,0.00023287,2]
[358680573,1745363451653,-599.95,0.00023287,2]
[358680574,1745363451664,-500.0,0.00023287,2]
[358680575,1745363451674,-500.0,0.00023287,2]
[358680576,1745363451684,-939.71,0.00023287,2]
[358680577,1745363451694,-500.0,0.00023287,2]
[358680578,1745363451704,-537.22353208,0.00023287,2]
[358680579,1745363451714,-500.0,0.00023287,2]
[358680580,1745363451724,-500.0,0.00023287,2]
[358680581,1745363451734,-582.37,0.00023287,2]
[358680582,1745363451743,-1024.79,0.00023287,2]
[358680583,1745363451753,-500.0,0.00023561,2]
[358680584,1745363451763,-756.71,0.00023561,2]
[358680585,1745363451774,-276.28955306,0.00023561,2]
[358680586,1745363451784,-500.0,0.00023561,2]
[358680587,1745363451794,-500.0,0.00023561,2]
[358680588,1745363451804,-1951.31,0.00023561,2]
[358680589,1745363451814,-1299.0,0.00023561,2]
[358680590,1745363451825,-500.0,0.00023561,2]
[358680591,1745363451838,-862.64,0.00023561,2]
[358680592,1745363451848,-599.95,0.00023561,2]
[358680593,1745363451858,-500.0,0.00023561,2]
[358680594,1745363451868,-500.0,0.00023561,2]
[358680595,1745363451878,-939.71,0.00023561,2]
[358680596,1745363451888,-500.0,0.00023561,2]
[358680597,1745363451898,-500.0,0.00023561,2]
[358680598,1745363451908,-343.0231534,0.00023561,2]
[358680599,1745363451918,-582.37,0.00023561,2]
[358680600,1745363451927,-1024.79,0.00023561,2]
[358680601,1745363451938,-600.0,0.00023616,2]
[358680602,1745363451948,-414.8,0.00023629,2]
[358680603,1745363451958,-151.0,0.00023629,2]
[358680604,1745363451968,-250.0,0.00023745,2]
[358680605,1745363451978,-756.71,0.00023835,2]
[358680606,1745363451988,-500.0,0.00023835,2]
[358680607,1745363451998,-500.0,0.00023835,2]
[358680608,1745363452008,-1951.31,0.00023835,2]
[358680609,1745363452018,-1299.0,0.00023835,2]
[358680610,1745363452028,-500.0,0.00023835,2]
[358680611,1745363452038,-862.64,0.00023835,2]
[358680612,1745363452048,-599.95,0.00023835,2]
[358680613,1745363452058,-500.0,0.00023835,2]
[358680614,1745363452068,-500.0,0.00023835,2]
[358680615,1745363452081,-939.71,0.00023835,2]
[358680616,1745363452092,-500.0,0.00023835,2]
[358680617,1745363452105,-500.0,0.00023835,2]
[358680618,1745363452115,-582.37,0.00023835,2]
[358680619,1745363452125,-1024.79,0.00023835,2]
[358680620,1745363452136,-756.71,0.00024109,2]
[358680621,1745363452147,-500.0,0.00024109,2]
[358680622,1745363452157,-500.0,0.00024109,2]
[358680623,1745363452168,-1951.31,0.00024109,2]
[358680624,1745363452179,-1299.0,0.00024109,2]
[358680625,1745363452190,-500.0,0.00024109,2]
[358680626,1745363452200,-862.64,0.00024109,2]
[358680627,1745363452210,-599.95,0.00024109,2]
[358680628,1745363452220,-500.0,0.00024109,2]
[358680629,1745363452231,-500.0,0.00024109,2]
[358680630,1745363452242,-939.71,0.00024109,2]
[358680632,1745363452383,-500.0,0.00024109,2]
[358680633,1745363452394,-168.0,0.00024109,2]
[358680634,1745363452404,-168.0,0.00024109,2]
[358680635,1745363452414,-168.0,0.00024109,2]
[358680636,1745363452424,-168.0,0.00024109,2]
[358680637,1745363452434,-168.0,0.00024109,2]
[358680638,1745363452444,-168.0,0.00024109,2]
[358680639,1745363452454,-168.0,0.00024109,2]
[358680640,1745363452464,-168.0,0.00024109,2]
[358680641,1745363452473,-168.0,0.00024109,2]
[358680642,1745363452482,-151.0,0.00024109,7]
[358680643,1745363452492,-500.0,0.00024109,2]
[358680644,1745363452502,-582.37,0.00024109,2]
[358680645,1745363452512,-1024.79,0.00024109,2]
[358680646,1745363452522,-151.0,0.00024177,2]
[358680647,1745363452532,-409.0,0.00024249,2]
[358680648,1745363452542,-160.0,0.00024249,2]
[358680649,1745363452552,-2660.8,0.00024383,2]
[358680650,1745363452562,-2660.8,0.00024383,2]
[358680651,1745363452572,-2660.8,0.00024383,2]
[358680652,1745363452585,-2660.8,0.00024383,2]
[358680653,1745363452596,-2660.8,0.00024383,2]
[358680654,1745363452606,-2660.8,0.00024383,2]
[358680655,1745363452616,-2660.8,0.00024383,2]
[358680656,1745363452627,-2660.8,0.00024383,2]
[358680657,1745363452637,-756.71,0.00024383,2]
[358680658,1745363452647,-500.0,0.00024383,2]
[358680659,1745363452657,-500.0,0.00024383,2]
[358680660,1745363452667,-151.0,0.00024383,7]
[358680661,1745363452678,-151.0,0.00024383,7]
[358680662,1745363452688,-178.077753,0.00024383,7]
[358680663,1745363452700,-1951.31,0.00024383,2]
[358680664,1745363452711,-151.0,0.00024383,7]
[358680665,1745363452721,-1299.0,0.00024383,2]
[358680666,1745363452732,-500.0,0.00024383,2]
[358680667,1745363452742,-862.64,0.00024383,2]
[358680668,1745363452752,-599.95,0.00024383,2]
[358680669,1745363452763,-151.0,0.00024383,7]
[358680670,1745363452773,-292.6,0.00024383,2]
[358680671,1745363452783,-500.0,0.00024383,2]
[358680672,1745363452793,-939.71,0.00024383,2]
[358680673,1745363452803,-500.0,0.00024383,2]
[358680674,1745363452813,-168.0,0.00024383,2]
[358680675,1745363452823,-500.0,0.00024383,2]
[358680676,1745363452834,-582.37,0.00024383,2]
[358680677,1745363452843,-1024.79,0.00024383,2]
[358680678,1745363452853,-151.0,0.00024383,7]
[358680679,1745363452862,-153.0,0.0002463,2]
[358680680,1745363452871,-153.0,0.0002463,2]
[358680681,1745363452882,-153.0,0.0002463,2]
[358680682,1745363452892,-153.0,0.0002463,2]
[358680683,1745363452902,-153.0,0.0002463,2]
[358680684,1745363452915,-153.0,0.0002463,2]
[358680685,1745363452929,-153.0,0.0002463,2]
[358680686,1745363452940,-153.0,0.0002463,2]
[358680687,1745363452950,-153.0,0.0002463,2]
[358680688,1745363452960,-153.0,0.0002463,2]
[358680689,1745363452970,-153.0,0.0002463,2]
[358680690,1745363452982,-153.0,0.0002463,2]
[358680691,1745363452992,-153.0,0.0002463,2]
[358680692,1745363453002,-153.0,0.0002463,2]
[358680693,1745363453012,-153.0,0.0002463,2]
[358680694,1745363453023,-756.71,0.00024657,2]
[358680695,1745363453033,-500.0,0.00024657,2]
[358680696,1745363453043,-500.0,0.00024657,2]
[358680697,1745363453053,-1951.31,0.00024657,2]
[358680698,1745363453063,-1299.0,0.00024657,2]
[358680699,1745363453073,-862.64,0.00024657,2]
[358680700,1745363453086,-599.95,0.00024657,2]
[358680701,1745363453096,-500.0,0.00024657,2]
[358680702,1745363453110,-939.71,0.00024657,2]
[358680703,1745363453120,-168.0,0.00024657,2]
[358680704,1745363453130,-582.37,0.00024657,2]
[358680705,1745363453140,-1024.79,0.00024657,2]
[358680706,1745363453150,-1258.290976,0.00024657,7]
[358680707,1745363453160,-1258.290976,0.00024657,7]
[358680708,1745363453170,-12570.97479393,0.00024658,3]
[358680709,1745363453182,-160.0,0.00024658,3]
[358680710,1745363453191,-420.73667954,0.00024658,3]
[358680711,1745363453201,-729.16666667,0.00024658,3]
[358680712,1745363453210,-160.0,0.00024658,3]
[358680713,1745363453220,-500.0,0.00024658,2]
[358680714,1745363453230,-500.0,0.00024658,2]
[358680715,1745363453239,-213.62737344,0.00024658,2]
[358680716,1745363453249,-500.0,0.00024658,2]
[358680717,1745363453258,-500.0,0.00024658,2]
[358680718,1745363453268,-500.0,0.00024658,2]
[358680719,1745363453278,-500.0,0.00024658,2]
[358680720,1745363453287,-500.0,0.00024658,2]
[358680721,1745363453296,-500.0,0.00024658,2]
[358680722,1745363453306,-500.0,0.00024658,2]
[358680723,1745363453317,-500.0,0.00024658,2]
[358680724,1745363453330,-500.0,0.00024658,2]
[358680725,1745363453340,-151.0,0.00024725,2]
[358680726,1745363453350,-151.0,0.00024799,7]
[358680727,1745363453359,-151.0,0.00024799,7]
[358680728,1745363453370,-238.705341,0.00024799,7]
[358680729,1745363453379,-151.0,0.00024799,7]
[358680730,1745363453390,-151.0,0.00024799,7]
[358680731,1745363453400,-1258.290976,0.00024799,7]
[358680732,1745363453410,-1258.290976,0.00024799,7]
[358680733,1745363453419,-151.0,0.00024799,7]
[358680734,1745363453429,-160.0,0.00024799,3]
[358680735,1745363453439,-160.0,0.00024799,3]
[358680736,1745363453449,-151.0,0.000248,7]
[358680737,1745363453460,-151.0,0.000248,7]
[358680738,1745363453470,-151.0,0.000248,7]
[358680739,1745363453480,-151.0,0.000248,7]
[358680740,1745363453490,-222.211341,0.000248,7]
[358680741,1745363453500,-24823.16115857,0.000248,2]
[358680742,1745363453921,-530.17827491,0.00024383,7]
[358680743,1745363453933,-14.93178109,0.00024383,7]
[358680744,1745363453944,-545.110056,0.00024799,7]
[358680745,1745363453954,-14972.40235806,0.000248,2]
[358680746,1745363453966,-1933.78,0.000248,2]
[358680747,1745363454009,-4048.27227817,0.000248,2]
[358680748,1745363454019,-151.0,0.00024899,7]
[358680749,1745363454029,-151.0,0.00024899,7]
[358680750,1745363454039,-151.0,0.00024899,7]
[358680751,1745363454049,-160.0,0.00024899,3]
[358680752,1745363454059,-420.73667954,0.00024899,3]
[358680753,1745363454069,-157.517512,0.000249,7]
[358680754,1745363454082,-151.0,0.000249,7]
[358680755,1745363454093,-151.0,0.000249,7]
[358680756,1745363454106,-151.0,0.000249,2]
[358680757,1745363454117,-171.72231,0.000249,2]
[358680758,1745363454127,-153.178815,0.000249,7]
[358680759,1745363454139,-151.0,0.000249,7]
[358680760,1745363454151,-151.0,0.000249,7]
[358680761,1745363454161,-190.89797,0.000249,7]
[358680762,1745363454175,-190.89797,0.000249,7]
[358680763,1745363454186,-201.322931,0.000249,7]
[358680764,1745363454196,-350.25565,0.000249,7]
[358680765,1745363454206,-350.25565,0.000249,7]
[358680766,1745363454218,-151.0,0.000249,7]
[358680767,1745363454228,-186.497797,0.000249,7]
[358680768,1745363454238,-311.562265,0.000249,2]
[358680769,1745363454248,-311.562265,0.000249,2]
[358680770,1745363454260,-151.0,0.000249,7]
[358680771,1745363454271,-151.0,0.000249,7]
[358680772,1745363454282,-151.0,0.000249,7]
[358680773,1745363454293,-151.0,0.000249,7]
[358680774,1745363454302,-151.0,0.000249,7]
[358680775,1745363454312,-75360.39416686,0.000249,2]
[358680776,1745363454324,-76796.0478642,0.000249,2]
[358680777,1745363454451,-500.0,0.00021917,2]
[358680778,1745363454461,-545.110056,0.00024383,7]
[358680779,1745363454471,-545.110056,0.00024799,7]
[358680780,1745363454481,-33698.46928113,0.000249,2]
[358680781,1745363454493,-1525.39979176,0.000249,2]
[358680782,1745363454505,-4650.99021106,0.000249,2]
[358680783,1745363454517,-2028.12413395,0.000249,2]
[358680803,1745363823522,-268.34341128,0.00020274,2]
[358680805,1745363884778,-199.68954371,0.00020274,2]
[358680811,1745363909176,-199.68954371,0.00020174,2]
[358680813,1745363910730,-423.74934831,0.00020274,2]
[358680821,1745364111763,-173.2969906,0.00020087,2]
[358680822,1745364111788,-108.2176967,0.00020274,2]
[358680823,1745364111813,-18.4853127,0.0002037,2]
[358680824,1745364116804,-399.68954371,0.0002037,2]
[358680828,1745364205916,1380.95159138,0.00019987,2]
[358680851,1745364521201,205.37630788,0.000175,4]
[358680871,1745364632577,-219.473418,0.00020514,2]
[358680872,1745364632588,-300.0,0.00020888,2]
[358680873,1745364632600,-300.0,0.00020888,2]
[358680874,1745364632610,-300.0,0.00020888,2]
[358680875,1745364632620,-24900.0,0.00020889,2]
[358680876,1745364632631,-231.7357308,0.00021375,2]
[358680877,1745364632641,-859.70045393,0.00021817,2]
[358680878,1745364632653,-1716.62361387,0.000219,3]
[358680879,1745364632662,-1167.52,0.00021907,3]
[358680880,1745364632672,-583.76,0.00021907,3]
[358680881,1745364632682,-291.88,0.00021907,3]
[358680882,1745364632692,-875.69,0.00021907,3]
[358680883,1745364632702,-654.8303297,0.00021914,2]
[358680884,1745364632712,-654.8303297,0.00021914,2]
[358680885,1745364632722,-654.8303297,0.00021914,2]
[358680886,1745364632732,-654.8303297,0.00021914,2]
[358680887,1745364632742,-654.8303297,0.00021914,2]
[358680888,1745364632752,-654.8303297,0.00021914,2]
[358680889,1745364632761,-654.8303297,0.00021914,2]
[358680890,1745364632772,-654.8303297,0.00021914,2]
[358680891,1745364632781,-654.8303297,0.00021914,2]
[358680892,1745364632792,-654.8303297,0.00021914,2]
[358680893,1745364632802,-654.8303297,0.00021914,2]
[358680894,1745364632813,-654.8303297,0.00021914,2]
[358680895,1745364632823,-654.8303297,0.00021914,2]
[358680896,1745364632833,-654.8303297,0.00021914,2]
[358680897,1745364632843,-654.8303297,0.00021914,2]
[358680898,1745364632854,-654.8303297,0.00021914,2]
[358680899,1745364632864,-654.8303297,0.00021914,2]
[358680900,1745364632874,-654.8303297,0.00021914,2]
[358680901,1745364632885,-654.8303297,0.00021914,2]
[358680902,1745364632895,-654.8303297,0.00021914,2]
[358680903,1745364632905,-654.8303297,0.00021914,2]
[358680904,1745364632915,-654.8303297,0.00021914,2]
[358680905,1745364632923,-654.8303297,0.00021914,2]
[358680906,1745364632933,-654.8303297,0.00021914,2]
[358680907,1745364632941,-654.8303297,0.00021914,2]
[358680908,1745364632950,-654.8303297,0.00021914,2]
[358680909,1745364632959,-654.8303297,0.00021914,2]
[358680910,1745364632967,-654.8303297,0.00021914,2]
[358680911,1745364632975,-654.8303297,0.00021914,2]
[358680913,1745364632985,-654.8303297,0.00021914,2]
[358680914,1745364632994,-654.8303297,0.00021914,2]
[358680915,1745364633003,-654.8303297,0.00021914,2]
[358680916,1745364633012,-654.8303297,0.00021914,2]
[358680917,1745364633027,-654.8303297,0.00021914,2]
[358680918,1745364633036,-654.8303297,0.00021914,2]
[358680919,1745364633046,-654.8303297,0.00021914,2]
[358680920,1745364633055,-1166.33500912,0.00021914,2]
[358680921,1745364633063,-1166.33500912,0.00021914,2]
[358680922,1745364633072,-1166.33500912,0.00021914,2]
[358680923,1745364633082,-1166.33500912,0.00021914,2]
[358680924,1745364633092,-1166.33500912,0.00021914,2]
[358680925,1745364633103,-1166.33500912,0.00021914,2]
[358680926,1745364633113,-1166.33500912,0.00021914,2]
[358680927,1745364633124,-1166.33500912,0.00021914,2]
[358680928,1745364633135,-1166.33500912,0.00021914,2]
[358680929,1745364633144,-1166.33500912,0.00021914,2]
[358680930,1745364633155,-1166.33500912,0.00021914,2]
[358680931,1745364633165,-1166.33500912,0.00021914,2]
[358680932,1745364633176,-1166.33500912,0.00021914,2]
[358680933,1745364633186,-1166.33500912,0.00021914,2]
[358680934,1745364633196,-1166.33500912,0.00021914,2]
[358680935,1745364633206,-1166.33500912,0.00021914,2]
[358680936,1745364633215,-1166.33500912,0.00021914,2]
[358680937,1745364633225,-1166.33500912,0.00021914,2]
[358680938,1745364633235,-1166.33500912,0.00021914,2]
[358680939,1745364633245,-1166.33500912,0.00021914,2]
[358680940,1745364633447,-1166.33500912,0.00021914,2]
[358680941,1745364633463,-1166.33500912,0.00021914,2]
[358680942,1745364633476,-1166.33500912,0.00021914,2]
[358680943,1745364633486,-1166.33500912,0.00021914,2]
[358680944,1745364633497,-1166.33500912,0.00021914,2]
[358680945,1745364633506,-1166.33500912,0.00021914,2]
[358680946,1745364633517,-1166.33500912,0.00021914,2]
[358680947,1745364633527,-654.8303297,0.00021914,2]
[358680948,1745364633537,-1164.1336261,0.00021914,2]
[358680949,1745364633547,-1164.1336261,0.00021914,2]
[358680950,1745364633559,-1164.1336261,0.00021914,2]
[358680951,1745364633569,-1164.1336261,0.00021914,2]
[358680952,1745364633579,-1164.1336261,0.00021914,2]
[358680953,1745364633592,-1164.1336261,0.00021914,2]
[358680954,1745364633601,-1164.1336261,0.00021914,2]
[358680955,1745364633611,-1164.1336261,0.00021914,2]
[358680956,1745364633621,-1164.1336261,0.00021914,2]
[358680957,1745364633631,-1164.1336261,0.00021914,2]
[358680958,1745364633641,-1164.1336261,0.00021914,2]
[358680959,1745364633651,-1164.1336261,0.00021914,2]
[358680960,1745364633662,-1164.1336261,0.00021914,2]
[358680961,1745364633671,-1164.1336261,0.00021914,2]
[358680962,1745364633681,-1164.1336261,0.00021914,2]
[358680963,1745364633691,-1164.1336261,0.00021914,2]
[358680964,1745364633701,-1164.1336261,0.00021914,2]
[358680965,1745364633710,-1212.63919386,0.00021914,2]
[358680966,1745364633720,-1212.63919386,0.00021914,2]
[358680967,1745364633730,-1212.63919386,0.00021914,2]
[358680968,1745364633739,-1212.63919386,0.00021914,2]
[358680969,1745364633750,-1212.63919386,0.00021914,2]
[358680970,1745364633759,-1212.63919386,0.00021914,2]
[358680971,1745364633769,-1212.63919386,0.00021914,2]
[358680972,1745364633779,-1212.63919386,0.00021914,2]
[358680973,1745364633789,-502.86542709,0.00021917,2]
[358680974,1745364633799,-500.0,0.00021917,2]
[358680975,1745364633809,-500.0,0.00021917,2]
[358680976,1745364633820,-500.0,0.00021917,2]
[358680977,1745364633830,-500.0,0.00021917,2]
[358680978,1745364633840,-500.0,0.00021917,2]
[358680979,1745364633850,-500.0,0.00021917,2]
[358680980,1745364633860,-503.26692799,0.00021917,2]
[358680981,1745364633870,-500.0,0.00021917,2]
[358680982,1745364633880,-500.0,0.00021917,2]
[358680983,1745364633890,-500.0,0.00021917,2]
[358680984,1745364633901,-500.0,0.00021917,2]
[358680985,1745364633911,-500.0,0.00021917,2]
[358680986,1745364633921,-500.0,0.00021917,2]
[358680987,1745364633931,-500.0,0.00021917,2]
[358680988,1745364633942,-500.0,0.00021917,2]
[358680989,1745364633951,-500.0,0.00021917,2]
[358680990,1745364633961,-500.0,0.00021917,2]
[358680991,1745364633971,-500.0,0.00021917,2]
[358680992,1745364633981,-500.0,0.00021917,2]
[358680993,1745364633992,-500.0,0.00021917,2]
[358680994,1745364634002,-500.0,0.00021917,2]
[358680995,1745364634012,-500.0,0.00021917,2]
[358680996,1745364634022,-500.0,0.00021917,2]
[358680997,1745364634032,-500.0,0.00021917,2]
[358680998,1745364634042,-500.0,0.00021917,2]
[358680999,1745364634052,-500.0,0.00021917,2]
[358681000,1745364634061,-245.44,0.00021917,2]
[358681001,1745364634071,-420.75,0.00021917,2]
[358681002,1745364634081,-174.36,0.00021917,2]
[358681003,1745364634091,-500.0,0.00021917,2]
[358681004,1745364634101,-500.0,0.00021917,2]
[358681005,1745364634110,-542.36,0.00021917,2]
[358681006,1745364634120,-500.0,0.00021917,2]
[358681007,1745364634130,-500.0,0.00021917,2]
[358681008,1745364634140,-500.0,0.00021917,2]
[358681009,1745364634150,-500.0,0.00021917,2]
[358681010,1745364634159,-500.0,0.00021917,2]
[358681011,1745364634169,-500.0,0.00021917,2]
[358681012,1745364634178,-500.0,0.00021917,2]
[358681013,1745364634188,-500.0,0.00021917,2]
[358681014,1745364634197,-500.0,0.00021917,2]
[358681015,1745364634206,-500.0,0.00021917,2]
[358681016,1745364634217,-500.0,0.00021917,2]
[358681017,1745364634226,-500.0,0.00021917,2]
[358681018,1745364634237,-500.0,0.00021917,2]
[358681019,1745364634246,-500.0,0.00021917,2]
[358681020,1745364634256,-500.0,0.00021917,2]
[358681021,1745364634265,-500.0,0.00021917,2]
[358681022,1745364634275,-500.0,0.00021917,2]
[358681023,1745364634285,-500.0,0.00021917,2]
[358681024,1745364634294,-500.0,0.00021917,2]
[358681025,1745364634304,-500.0,0.00021917,2]
[358681026,1745364634314,-500.0,0.00021917,2]
[358681027,1745364634324,-500.0,0.00021917,2]
[358681028,1745364634334,-500.0,0.00021917,2]
[358681029,1745364634343,-500.0,0.00021917,2]
[358681030,1745364634353,-500.0,0.00021917,2]
[358681031,1745364634363,-500.0,0.00021917,2]
[358681032,1745364634373,-500.0,0.00021917,2]
[358681033,1745364634383,-500.0,0.00021917,2]
[358681034,1745364634392,-155.55633072,0.00021917,2]
[358681035,1745364634402,-500.0,0.00021917,2]
[358681036,1745364634411,-500.0,0.00021917,2]
[358681037,1745364634421,-500.0,0.00021917,2]
[358681038,1745364634431,-500.0,0.00021917,2]
[358681039,1745364634441,-500.0,0.00021917,2]
[358681040,1745364634451,-500.0,0.00021917,2]
[358681041,1745364634460,-500.0,0.00021917,2]
[358681042,1745364634473,-500.0,0.00021917,2]
[358681043,1745364634486,-449.10325074,0.00021917,2]
[358681044,1745364634509,-500.0,0.00021917,2]
[358681045,1745364634522,-500.0,0.00021917,2]
[358681046,1745364634533,-500.0,0.00021917,2]
[358681047,1745364634544,-500.0,0.00021917,2]
[358681048,1745364634554,-500.0,0.00021917,2]
[358681049,1745364634564,-500.0,0.00021917,2]
[358681050,1745364634574,-500.0,0.00021917,2]
[358681051,1745364634584,-500.0,0.00021917,2]